fUSD/lending_fUSD_20240212
["ID","MTS","AMOUNT","RATE_DAILY","PERIOD"]
[313861501,1707755452030,-500.0,0.00025493,2]
[313861502,1707755452040,-500.0,0.00025493,2]
[313861503,1707755452050,-500.0,0.00025493,2]
[313861504,1707755452059,-500.0,0.00025493,2]
[313861505,1707755452069,-500.0,0.00025493,2]
[313861506,1707755452079,-500.0,0.00025493,2]
[313861507,1707755452089,-500.0,0.00025493,2]
[313861508,1707755452099,-500.0,0.00025493,2]
[313861509,1707755452108,-500.0,0.00025493,2]
[313861510,1707755452118,-500.0,0.00025493,2]
[313861511,1707755452127,-500.0,0.00025493,2]
[313861512,1707755452138,-1322.44,0.00025493,2]
[313861513,1707755452149,-985.98,0.00025493,2]
[313861514,1707755452161,-780.89,0.00025493,2]
[313861515,1707755452171,-652.54,0.00025493,2]
[313861516,1707755452181,-598.88,0.00025493,2]
[313861517,1707755452192,-500.0,0.00025493,2]
[313861518,1707755452203,-500.0,0.00025493,2]
[313861519,1707755452212,-324.62770337,0.0002565,2]
[313861520,1707755452222,-403.06,0.00025663,2]
[313861521,1707755452232,-7311.28663397,0.00025675,2]
[313861522,1707755452241,-500.0,0.00025767,2]
[313861523,1707755452251,-500.0,0.00025767,2]
[313861524,1707755452260,-500.0,0.00025767,2]
[313861525,1707755452269,-500.0,0.00025767,2]
[313861526,1707755452279,-500.0,0.00025767,2]
[313861527,1707755452290,-500.0,0.00025767,2]
[313861528,1707755452300,-500.0,0.00025767,2]
[313861529,1707755452310,-979.25,0.00025767,2]
[313861530,1707755452320,-500.0,0.00025767,2]
[313861531,1707755452330,-500.0,0.00025767,2]
[313861532,1707755452339,-538.91,0.00025767,2]
[313861533,1707755452349,-500.0,0.00025767,2]
[313861534,1707755452359,-500.0,0.00025767,2]
[313861535,1707755452370,-500.0,0.00025767,2]
[313861536,1707755452379,-500.0,0.00025767,2]
[313861537,1707755452388,-501.16,0.00025767,2]
[313861538,1707755452398,-500.0,0.00025767,2]
[313861539,1707755452407,-500.0,0.00025767,2]
[313861540,1707755452417,-500.0,0.00025767,2]
[313861541,1707755452429,-500.0,0.00025767,2]
[313861542,1707755452440,-500.0,0.00025767,2]
[313861543,1707755452449,-500.0,0.00025767,2]
[313861544,1707755452459,-500.0,0.00025767,2]
[313861545,1707755452469,-500.0,0.00025767,2]
[313861546,1707755452479,-500.0,0.00025767,2]
[313861547,1707755452488,-500.0,0.00025767,2]
[313861548,1707755452498,-283.5,0.00025767,2]
[313861549,1707755452507,-500.0,0.00025767,2]
[313861550,1707755452517,-500.0,0.00025767,2]
[313861551,1707755452526,-500.0,0.00025767,2]
[313861552,1707755452535,-500.0,0.00025767,2]
[313861553,1707755452545,-500.0,0.00025767,2]
[313861554,1707755452554,-591.1,0.00025767,2]
[313861555,1707755452563,-500.0,0.00025767,2]
[313861556,1707755452573,-1322.44,0.00025767,2]
[313861557,1707755452582,-985.98,0.00025767,2]
[313861558,1707755452591,-780.89,0.00025767,2]
[313861559,1707755452600,-652.54,0.00025767,2]
[313861560,1707755452611,-598.88,0.00025767,2]
[313861561,1707755452621,-500.0,0.00025767,2]
[313861562,1707755452630,-500.0,0.00025767,2]
[313861563,1707755452639,-153.15,0.00025768,2]
[313861564,1707755452649,-1231.0,0.00025863,2]
[313861565,1707755452659,-707.0,0.00025863,2]
[313861566,1707755452669,-1253.0,0.00025863,2]
[313861567,1707755452678,-1723.578,0.00025863,2]
[313861568,1707755452687,-572.839,0.00025863,2]
[313861569,1707755452697,-4206.0,0.0002589,2]
[313861570,1707755452707,-6808.181,0.0002589,2]
[313861571,1707755452716,-261.704,0.0002589,2]
[313861572,1707755452725,-216.0,0.0002589,2]
[313861573,1707755452735,-500.0,0.00026041,2]
[313861574,1707755452744,-500.0,0.00026041,2]
[313861575,1707755452753,-500.0,0.00026041,2]
[313861576,1707755452762,-500.0,0.00026041,2]
[313861577,1707755452773,-500.0,0.00026041,2]
[313861578,1707755452782,-630.15559785,0.00026041,2]
[313861579,1707755452793,-500.0,0.00026041,2]
[313861580,1707755452803,-979.25,0.00026041,2]
[313861581,1707755452812,-500.0,0.00026041,2]
[313861582,1707755452822,-500.0,0.00026041,2]
[313861583,1707755452832,-538.91,0.00026041,2]
[313861584,1707755452841,-500.0,0.00026041,2]
[313861585,1707755452851,-500.0,0.00026041,2]
[313861586,1707755452861,-500.0,0.00026041,2]
[313861587,1707755452870,-500.0,0.00026041,2]
[313861588,1707755452880,-501.16,0.00026041,2]
[313861589,1707755452889,-500.0,0.00026041,2]
[313861590,1707755452899,-500.0,0.00026041,2]
[313861591,1707755452908,-500.0,0.00026041,2]
[313861592,1707755452917,-199.29999999,0.00026041,2]
[313861593,1707755452926,-500.0,0.00026041,2]
[313861594,1707755452935,-500.0,0.00026041,2]
[313861595,1707755452945,-234.71,0.00026041,2]
[313861596,1707755452954,-500.0,0.00026041,2]
[313861597,1707755452964,-500.0,0.00026041,2]
[313861598,1707755452973,-500.0,0.00026041,2]
[313861599,1707755452983,-500.0,0.00026041,2]
[313861600,1707755452992,-500.0,0.00026041,2]
[313861601,1707755453002,-500.0,0.00026041,2]
[313861602,1707755453011,-500.0,0.00026041,2]
[313861603,1707755453020,-500.0,0.00026041,2]
[313861604,1707755453029,-302.01976469,0.00026041,2]
[313861605,1707755453041,-1322.44,0.00026041,2]
[313861606,1707755453050,-985.98,0.00026041,2]
[313861607,1707755453062,-780.89,0.00026041,2]
[313861608,1707755453071,-652.54,0.00026041,2]
[313861609,1707755453081,-598.88,0.00026041,2]
[313861610,1707755453091,-477.49,0.00026041,2]
[313861611,1707755453101,-500.0,0.00026041,2]
[313861612,1707755453111,-12828.49625772,0.00026254,2]
[313861613,1707755453121,-1484.91194498,0.00026254,2]
[313861614,1707755453132,-500.0,0.00026315,2]
[313861615,1707755453142,-500.0,0.00026315,2]
[313861616,1707755453152,-500.0,0.00026315,2]
[313861617,1707755453163,-500.0,0.00026315,2]
[313861618,1707755453173,-500.0,0.00026315,2]
[313861619,1707755453182,-500.0,0.00026315,2]
[313861620,1707755453192,-979.25,0.00026315,2]
[313861621,1707755453201,-500.0,0.00026315,2]
[313861622,1707755453211,-500.0,0.00026315,2]
[313861623,1707755453221,-538.91,0.00026315,2]
[313861624,1707755453231,-500.0,0.00026315,2]
[313861625,1707755453240,-500.0,0.00026315,2]
[313861626,1707755453249,-500.0,0.00026315,2]
[313861627,1707755453259,-500.0,0.00026315,2]
[313861628,1707755453268,-501.16,0.00026315,2]
[313861629,1707755453277,-500.0,0.00026315,2]
[313861630,1707755453287,-272.92,0.00026315,2]
[313861631,1707755453300,-500.0,0.00026315,2]
[313861632,1707755453310,-593.76492035,0.00026315,2]
[313861633,1707755453319,-500.0,0.00026315,2]
[313861634,1707755453329,-490.49,0.00026315,2]
[313861635,1707755453338,-500.0,0.00026315,2]
[313861636,1707755453348,-500.0,0.00026315,2]
[313861637,1707755453358,-500.0,0.00026315,2]
[313861638,1707755453368,-500.0,0.00026315,2]
[313861639,1707755453378,-500.0,0.00026315,2]
[313861640,1707755453389,-500.0,0.00026315,2]
[313861641,1707755453400,-500.0,0.00026315,2]
[313861642,1707755453409,-1322.44,0.00026315,2]
[313861643,1707755453419,-985.98,0.00026315,2]
[313861644,1707755453429,-780.89,0.00026315,2]
[313861645,1707755453438,-652.54,0.00026315,2]
[313861646,1707755453450,-598.88,0.00026315,2]
[313861647,1707755453460,-500.0,0.00026315,2]
[313861648,1707755453469,-206.0,0.00026551,8]
[313861649,1707755453479,-500.0,0.00026589,2]
[313861650,1707755453490,-500.0,0.00026589,2]
[313861651,1707755453499,-373.33,0.00026589,2]
[313861652,1707755453509,-500.0,0.00026589,2]
[313861653,1707755453521,-500.0,0.00026589,2]
[313861654,1707755453532,-500.0,0.00026589,2]
[313861655,1707755453545,-500.0,0.00026589,2]
[313861656,1707755453554,-979.25,0.00026589,2]
[313861657,1707755453563,-500.0,0.00026589,2]
[313861658,1707755453572,-538.91,0.00026589,2]
[313861659,1707755453582,-500.0,0.00026589,2]
[313861660,1707755453591,-500.0,0.00026589,2]
[313861661,1707755453600,-500.0,0.00026589,2]
[313861662,1707755453610,-500.0,0.00026589,2]
[313861663,1707755453620,-501.16,0.00026589,2]
[313861664,1707755453630,-500.0,0.00026589,2]
[313861665,1707755453639,-500.0,0.00026589,2]
[313861666,1707755453649,-500.0,0.00026589,2]
[313861667,1707755453660,-500.0,0.00026589,2]
[313861668,1707755453669,-500.0,0.00026589,2]
[313861669,1707755453678,-500.0,0.00026589,2]
[313861670,1707755453688,-500.0,0.00026589,2]
[313861671,1707755453697,-500.0,0.00026589,2]
[313861672,1707755453706,-500.0,0.00026589,2]
[313861673,1707755453716,-500.0,0.00026589,2]
[313861674,1707755453725,-1322.44,0.00026589,2]
[313861675,1707755453736,-985.98,0.00026589,2]
[313861676,1707755453745,-780.89,0.00026589,2]
[313861677,1707755453755,-652.54,0.00026589,2]
[313861678,1707755453766,-598.88,0.00026589,2]
[313861679,1707755453776,-500.0,0.00026589,2]
[313861680,1707755453785,-7311.28663397,0.00026775,2]
[313861681,1707755453795,-500.0,0.00026863,2]
[313861682,1707755453805,-500.0,0.00026863,2]
[313861683,1707755453814,-500.0,0.00026863,2]
[313861684,1707755453823,-500.0,0.00026863,2]
[313861685,1707755453832,-615.56,0.00026863,2]
[313861686,1707755453841,-500.0,0.00026863,2]
[313861687,1707755453850,-979.25,0.00026863,2]
[313861688,1707755453859,-500.0,0.00026863,2]
[313861689,1707755453867,-538.91,0.00026863,2]
[313861690,1707755453877,-220.1151681,0.00026863,2]
[313861691,1707755453886,-500.0,0.00026863,2]
[313861692,1707755453896,-500.0,0.00026863,2]
[313861693,1707755453906,-500.0,0.00026863,2]
[313861694,1707755453915,-501.16,0.00026863,2]
[313861695,1707755453925,-500.0,0.00026863,2]
[313861696,1707755453935,-500.0,0.00026863,2]
[313861697,1707755453945,-500.0,0.00026863,2]
[313861698,1707755453955,-500.0,0.00026863,2]
[313861699,1707755453964,-427.04,0.00026863,2]
[313861700,1707755453974,-500.0,0.00026863,2]
[313861701,1707755453983,-500.0,0.00026863,2]
[313861702,1707755453993,-500.0,0.00026863,2]
[313861703,1707755454002,-500.0,0.00026863,2]
[313861704,1707755454013,-500.0,0.00026863,2]
[313861705,1707755454022,-1322.44,0.00026863,2]
[313861706,1707755454032,-985.98,0.00026863,2]
[313861707,1707755454043,-780.89,0.00026863,2]
[313861708,1707755454052,-652.54,0.00026863,2]
[313861709,1707755454062,-598.88,0.00026863,2]
[313861710,1707755454072,-500.0,0.00026863,2]
[313861711,1707755454083,-200.0,0.00026877,2]
[313861712,1707755454092,-153.15,0.00026888,2]
[313861713,1707755454102,-200.0,0.00027,2]
[313861714,1707755454111,-512.06274968,0.00027,2]
[313861715,1707755454121,-1300.0,0.00027,3]
[313861716,1707755454130,-150.0,0.00027134,2]
[313861717,1707755454140,-329.04,0.00027137,2]
[313861718,1707755454149,-624.6,0.00027137,2]
[313861719,1707755454159,-465.42,0.00027137,2]
[313861720,1707755454167,-586.72730892,0.00027137,2]
[313861721,1707755454177,-500.0,0.00027137,2]
[313861722,1707755454187,-979.25,0.00027137,2]
[313861723,1707755454196,-500.0,0.00027137,2]
[313861724,1707755454205,-538.91,0.00027137,2]
[313861725,1707755454215,-500.0,0.00027137,2]
[313861726,1707755454225,-242.44,0.00027137,2]
[313861727,1707755454235,-500.0,0.00027137,2]
[313861728,1707755454245,-501.16,0.00027137,2]
[313861729,1707755454254,-500.0,0.00027137,2]
[313861730,1707755454264,-347.74219236,0.00027137,2]
[313861731,1707755454273,-500.0,0.00027137,2]
[313861732,1707755454282,-500.0,0.00027137,2]
[313861733,1707755454293,-500.0,0.00027137,2]
[313861734,1707755454302,-500.0,0.00027137,2]
[313861735,1707755454311,-500.0,0.00027137,2]
[313861736,1707755454321,-500.0,0.00027137,2]
[313861737,1707755454331,-486.8324584,0.00027137,2]
[313861738,1707755454341,-1322.44,0.00027137,2]
[313861739,1707755454350,-985.98,0.00027137,2]
[313861740,1707755454361,-780.89,0.00027137,2]
[313861741,1707755454371,-652.54,0.00027137,2]
[313861742,1707755454382,-598.88,0.00027137,2]
[313861743,1707755454392,-500.0,0.00027137,2]
[313861744,1707755454402,-185.61,0.00027175,2]
[313861745,1707755454412,-284.92,0.00027218,2]
[313861746,1707755454421,-403.06,0.00027307,2]
[313861747,1707755454430,-2097.29,0.00027397,2]
[313861748,1707755454441,-1095.1,0.00027397,10]
[313861749,1707755454453,-925.0,0.000274,2]
[313861750,1707755454463,-1762.95263917,0.000274,2]
[313861751,1707755454473,-2000.0,0.000274,2]
[313861752,1707755454483,-729.42,0.000274,2]
[313861753,1707755454492,-729.42,0.000274,2]
[313861754,1707755454501,-729.42,0.000274,2]
[313861755,1707755454511,-500.0,0.00027411,2]
[313861756,1707755454522,-979.25,0.00027411,2]
[313861757,1707755454532,-500.0,0.00027411,2]
[313861758,1707755454544,-538.91,0.00027411,2]
[313861759,1707755454554,-500.0,0.00027411,2]
[313861760,1707755454563,-500.0,0.00027411,2]
[313861761,1707755454573,-501.16,0.00027411,2]
[313861762,1707755454583,-500.0,0.00027411,2]
[313861763,1707755454594,-500.0,0.00027411,2]
[313861764,1707755454604,-500.0,0.00027411,2]
[313861765,1707755454615,-162.2,0.00027411,2]
[313861766,1707755454625,-500.0,0.00027411,2]
[313861767,1707755454634,-500.0,0.00027411,2]
[313861768,1707755454644,-500.0,0.00027411,2]
[313861769,1707755454654,-1322.44,0.00027411,2]
[313861770,1707755454664,-985.98,0.00027411,2]
[313861771,1707755454674,-780.89,0.00027411,2]
[313861772,1707755454684,-652.54,0.00027411,2]
[313861773,1707755454694,-598.88,0.00027411,2]
[313861774,1707755454703,-319.89,0.00027411,2]
[313861775,1707755454714,-1099.36835556,0.0002744,2]
[313861776,1707755454724,-155.0,0.000275,2]
[313861777,1707755454734,-2097.29,0.00027556,2]
[313861778,1707755454744,-152.0,0.0002757,5]
[313861779,1707755454754,-500.0,0.00027685,2]
[313861780,1707755454765,-979.25,0.00027685,2]
[313861781,1707755454776,-500.0,0.00027685,2]
[313861782,1707755454785,-538.91,0.00027685,2]
[313861783,1707755454796,-500.0,0.00027685,2]
[313861784,1707755454805,-500.0,0.00027685,2]
[313861785,1707755454816,-501.16,0.00027685,2]
[313861786,1707755454827,-500.0,0.00027685,2]
[313861787,1707755454837,-437.26,0.00027685,2]
[313861788,1707755454848,-500.0,0.00027685,2]
[313861789,1707755454859,-500.0,0.00027685,2]
[313861790,1707755454868,-500.0,0.00027685,2]
[313861791,1707755454878,-500.0,0.00027685,2]
[313861792,1707755454888,-1322.44,0.00027685,2]
[313861793,1707755454898,-985.98,0.00027685,2]
[313861794,1707755454907,-780.89,0.00027685,2]
[313861795,1707755454916,-652.54,0.00027685,2]
[313861796,1707755454926,-598.88,0.00027685,2]
[313861797,1707755454935,-2097.29,0.00027714,2]
[313861798,1707755454945,-2097.29,0.00027872,2]
[313861799,1707755454954,-7311.28663397,0.00027875,2]
[313861800,1707755454963,-12828.49625772,0.00027918,2]
[313861801,1707755454973,-1484.91194498,0.00027918,2]
[313861802,1707755454983,-206.0,0.00027945,10]
[313861803,1707755454993,-277.22,0.00027959,2]
[313861804,1707755455003,-979.25,0.00027959,2]
[313861805,1707755455012,-500.0,0.00027959,2]
[313861806,1707755455022,-538.91,0.00027959,2]
[313861807,1707755455031,-500.0,0.00027959,2]
[313861808,1707755455042,-500.0,0.00027959,2]
[313861809,1707755455052,-501.16,0.00027959,2]
[313861810,1707755455061,-264.10999999,0.00027959,2]
[313861811,1707755455071,-636.6,0.00027959,2]
[313861812,1707755455081,-500.0,0.00027959,2]
[313861813,1707755455090,-500.0,0.00027959,2]
[313861814,1707755455100,-500.0,0.00027959,2]
[313861815,1707755455112,-1322.44,0.00027959,2]
[313861816,1707755455122,-985.98,0.00027959,2]
[313861817,1707755455132,-780.89,0.00027959,2]
[313861818,1707755455142,-652.54,0.00027959,2]
[313861819,1707755455152,-598.88,0.00027959,2]
[313861820,1707755455162,-692.60049049,0.00028,2]
[313861821,1707755455172,-200.0,0.00028,2]
[313861822,1707755455182,-346.24,0.00028013,2]
[313861823,1707755455191,-2097.29,0.0002803,2]
[313861824,1707755455201,-723.0,0.00028068,2]
[313861825,1707755455211,-2097.29,0.00028189,2]
[313861826,1707755455221,-1000.0,0.000282,2]
[313861827,1707755455232,-800.0,0.00028227,2]
[313861828,1707755455241,-979.25,0.00028233,2]
[313861829,1707755455251,-500.0,0.00028233,2]
[313861830,1707755455261,-538.91,0.00028233,2]
[313861831,1707755455271,-500.0,0.00028233,2]
[313861832,1707755455281,-500.0,0.00028233,2]
[313861833,1707755455292,-501.16,0.00028233,2]
[313861834,1707755455302,-500.0,0.00028233,2]
[313861835,1707755455312,-151.0,0.00028233,7]
[313861836,1707755455322,-2557.60701,0.00028233,7]
[313861837,1707755455331,-490.22733813,0.00028233,2]
[313861838,1707755455341,-2557.60701,0.00028233,7]
[313861839,1707755455351,-151.0,0.00028233,7]
[313861840,1707755455362,-500.0,0.00028233,2]
[313861841,1707755455372,-151.0,0.00028233,7]
[313861842,1707755455382,-151.0,0.00028233,7]
[313861843,1707755455392,-151.0,0.00028233,7]
[313861844,1707755455403,-599.54502,0.00028233,7]
[313861845,1707755455413,-599.54502,0.00028233,7]
[313861846,1707755455425,-1322.44,0.00028233,2]
[313861847,1707755455438,-151.0,0.00028233,7]
[313861848,1707755455448,-985.98,0.00028233,2]
[313861849,1707755455460,-780.89,0.00028233,2]
[313861850,1707755455471,-652.54,0.00028233,2]
[313861851,1707755455482,-598.88,0.00028233,2]
[313861852,1707755455492,-2097.29,0.00028347,2]
[313861853,1707755455503,-2097.29,0.00028505,2]
[313861854,1707755455513,-151.0,0.00028507,7]
[313861855,1707755455523,-386.142924,0.00028507,7]
[313861856,1707755455532,-214.238353,0.00028507,7]
[313861857,1707755455543,-155.27321,0.00028507,7]
[313861858,1707755455553,-214.238353,0.00028507,7]
[313861859,1707755455562,-151.0,0.00028507,7]
[313861860,1707755455572,-151.601803,0.00028507,7]
[313861861,1707755455582,-979.25,0.00028507,2]
[313861862,1707755455592,-500.0,0.00028507,2]
[313861863,1707755455602,-538.91,0.00028507,2]
[313861864,1707755455612,-500.0,0.00028507,2]
[313861865,1707755455621,-151.0,0.00028507,7]
[313861866,1707755455631,-500.0,0.00028507,2]
[313861867,1707755455641,-501.16,0.00028507,2]
[313861868,1707755455651,-151.0,0.00028507,7]
[313861869,1707755455660,-338.348826,0.00028507,7]
[313861870,1707755455671,-347.317455,0.00028507,7]
[313861871,1707755455681,-338.348826,0.00028507,7]
[313861872,1707755455691,-237.612106,0.00028507,7]
[313861873,1707755455701,-347.317455,0.00028507,7]
[313861874,1707755455711,-237.612106,0.00028507,7]
[313861875,1707755455721,-246.073602,0.00028507,7]
[313861876,1707755455731,-246.073602,0.00028507,7]
[313861877,1707755455741,-151.0,0.00028507,7]
[313861878,1707755455751,-213.44,0.00028507,2]
[313861879,1707755455760,-615.31469611,0.00028507,2]
[313861880,1707755455770,-1322.44,0.00028507,2]
[313861881,1707755455780,-985.98,0.00028507,2]
[313861882,1707755455790,-780.89,0.00028507,2]
[313861883,1707755455800,-652.54,0.00028507,2]
[313861884,1707755455810,-598.88,0.00028507,2]
[313861885,1707755455820,-346.0,0.000286,2]
[313861886,1707755455829,-1000.0,0.000286,2]
[313861887,1707755455839,-2097.29,0.00028664,2]
[313861888,1707755455849,-979.25,0.00028781,2]
[313861889,1707755455858,-376.38,0.00028781,2]
[313861890,1707755455868,-538.91,0.00028781,2]
[313861891,1707755455878,-215.30640042,0.00028781,2]
[313861892,1707755455887,-500.0,0.00028781,2]
[313861893,1707755455897,-501.16,0.00028781,2]
[313861894,1707755455907,-1322.44,0.00028781,2]
[313861895,1707755455917,-985.98,0.00028781,2]
[313861896,1707755455927,-780.89,0.00028781,2]
[313861897,1707755455936,-652.54,0.00028781,2]
[313861898,1707755455946,-598.88,0.00028781,2]
[313861899,1707755455956,-151.0,0.00028805,120]
[313861900,1707755455965,-2097.29,0.00028822,2]
[313861901,1707755455975,-1231.0,0.00028863,2]
[313861902,1707755455985,-1253.0,0.00028863,2]
[313861903,1707755455995,-2528.732,0.0002889,2]
[313861904,1707755456005,-216.0,0.0002889,2]
[313861905,1707755456014,-403.06,0.0002895,2]
[313861906,1707755456024,-7311.28663397,0.00028975,2]
[313861907,1707755456034,-150.0,0.00028999,2]
[313861908,1707755456045,-150.0,0.00028999,2]
[313861909,1707755456055,-150.0,0.00028999,2]
[313861910,1707755456065,-75306.0,0.00029,2]
[313861911,1707755456075,-1350.0,0.00029,3]
[313861912,1707755456086,-151.0,0.00029,7]
[313861913,1707755456097,-151.0,0.00029,7]
[313861914,1707755456107,-415.737418,0.00029,7]
[313861915,1707755456117,-415.737418,0.00029,7]
[313861916,1707755456127,-151.0,0.00029,7]
[313861917,1707755456137,-180.765941,0.00029,7]
[313861918,1707755456147,-180.765941,0.00029,7]
[313861919,1707755456157,-151.0,0.00029,7]
[313861920,1707755456167,-151.0,0.00029,7]
[313861921,1707755456177,-156.411887,0.00029,7]
[313861922,1707755456187,-151.0,0.00029,7]
[313861923,1707755456197,-168.766293,0.00029,7]
[313861924,1707755456206,-151.0,0.00029,7]
[313861925,1707755456215,-151.0,0.00029,7]
[313861926,1707755456224,-151.0,0.00029,7]
[313861927,1707755456234,-151.0,0.00029,7]
[313861928,1707755456244,-151.0,0.00029,7]
[313861929,1707755456254,-151.0,0.00029,7]
[313861930,1707755456264,-2557.60701,0.00029,7]
[313861931,1707755456273,-2557.60701,0.00029,7]
[313861932,1707755456283,-151.0,0.00029,7]
[313861933,1707755456294,-259.169308,0.00029,7]
[313861934,1707755456304,-151.0,0.00029,7]
[313861935,1707755456314,-151.0,0.00029,7]
[313861936,1707755456324,-599.54502,0.00029,7]
[313861937,1707755456334,-599.54502,0.00029,7]
[313861938,1707755456343,-151.0,0.00029,7]
[313861939,1707755456354,-1624.5,0.00029,7]
[313861940,1707755456363,-1624.5,0.00029,7]
[313861941,1707755456374,-979.25,0.00029055,2]
[313861942,1707755456383,-538.91,0.00029055,2]
[313861943,1707755456394,-500.0,0.00029055,2]
[313861944,1707755456404,-501.16,0.00029055,2]
[313861945,1707755456413,-1322.44,0.00029055,2]
[313861946,1707755456423,-985.98,0.00029055,2]
[313861947,1707755456433,-780.89,0.00029055,2]
[313861948,1707755456443,-652.54,0.00029055,2]
[313861949,1707755456455,-598.88,0.00029055,2]
[313861950,1707755456464,-156.299999,0.000292,2]
[313861951,1707755456474,-979.47878606,0.00029329,2]
[313861952,1707755456483,-539.09,0.00029329,2]
[313861953,1707755456493,-257.84,0.00029329,2]
[313861954,1707755456503,-501.21546605,0.00029329,2]
[313861955,1707755456513,-1322.45686104,0.00029329,2]
[313861956,1707755456524,-986.03085193,0.00029329,2]
[313861957,1707755456533,-780.99,0.00029329,2]
[313861958,1707755456544,-652.72673073,0.00029329,2]
[313861959,1707755456553,-599.01556569,0.00029329,2]
[313861960,1707755456563,-206.0,0.00029339,12]
[313861961,1707755456573,-151.0,0.00029393,30]
[313861962,1707755456583,-284.92,0.00029482,2]
[313861963,1707755456592,-228.3964544,0.000295,3]
[313861964,1707755456602,-12828.49625772,0.00029582,2]
[313861965,1707755456612,-1484.91194498,0.00029582,2]
[313861966,1707755456622,-200.0,0.000297,2]
[313861967,1707755456631,-186.02813876,0.00029715,2]
[313861968,1707755456641,-150.0,0.00029738,2]
[313861969,1707755456651,-150.0,0.00029741,2]
[313861970,1707755456662,-418.6583457,0.00029755,2]
[313861971,1707755456672,-353.11223672,0.00029755,2]
[313861972,1707755456683,-174.66044117,0.00029755,2]
[313861973,1707755456694,-187.6972268,0.00029755,2]
[313861974,1707755456704,-190.55866815,0.00029755,2]
[313861975,1707755456715,-800.0,0.00029759,2]
[313861976,1707755456727,-931.53711822,0.00029765,2]
[313861977,1707755456737,-150.0,0.00029774,2]
[313861978,1707755456747,-185.61,0.00029781,2]
[313861979,1707755456758,-176.48526302,0.000298,2]
[313861980,1707755456770,-1500.0,0.000298,10]
[313861981,1707755456780,-150.0,0.00029816,2]
[313861982,1707755456791,-150.0,0.00029818,2]
[313861983,1707755456801,-150.0,0.00029844,2]
[313861984,1707755456811,-957348.21764425,0.0002985,2]
[313861985,1707755457263,-2338.61196557,0.0002985,2]
[313861986,1707755457281,-5109.7172539,0.0002985,2]
[313861987,1707755457298,-99082.00000015,0.0002985,2]
[313861988,1707755457416,-629.112,0.00027397,10]
[313861989,1707755457431,-1080.708,0.00027397,10]
[313861990,1707755457443,-11721.67950001,0.0002985,2]
[313861991,1707755457455,-87187.5,0.0002985,2]
[313861992,1707755457469,-383.51059371,0.0002985,2]
[313861993,1707755457494,-8939.2296,0.0002985,2]
[313861994,1707755457505,-2477.0,0.0002985,2]
[313861995,1707755457519,-2065.55490327,0.0002985,2]
[313861996,1707755457531,-1293.149938,0.0002985,2]
[313861997,1707755457543,-7458.05320567,0.0002985,2]
[313861998,1707755457555,-6235.65860793,0.0002985,2]
[313861999,1707755457568,-310.75095342,0.0002985,2]
[313862000,1707755457581,-9135.42716835,0.0002985,2]